[Event "Late-Titled-Tuesday-Blitz-October-03-2023"]
[Site "Chess.com"]
[Date "2023.10.03"]
[Round "1"]
[White "MasterKroket"]
[Black "BeanScreen"]
[Result "0-1"]
[WhiteElo "2391"]
[BlackElo "2706"]
[TimeControl "180+1"]
[EndTime "14:05:57 PDT"]
[Termination "BeanScreen won by resignation"]

1. e4 {[%clk 0:03:00.9]} 1... e5 {[%clk 0:01:06.7]} 2. Nf3 {[%clk 0:02:58.1]}
2... Nc6 {[%clk 0:01:07.6]} 3. d4 {[%clk 0:02:57.6]} 3... exd4 {[%clk
0:01:07.4]} 4. Nxd4 {[%clk 0:02:57.9]} 4... Bc5 {[%clk 0:01:07.5]} 5. Nb3 {[%clk
0:02:55.4]} 5... Bb6 {[%clk 0:01:07.5]} 6. Nc3 {[%clk 0:02:55.9]} 6... Nf6
{[%clk 0:01:07.3]} 7. Qe2 {[%clk 0:02:56.2]} 7... O-O {[%clk 0:01:06.9]} 8. Bg5
{[%clk 0:02:55.3]} 8... h6 {[%clk 0:01:06.2]} 9. Bh4 {[%clk 0:02:50.2]} 9... a5
{[%clk 0:01:06.5]} 10. a4 {[%clk 0:02:43.1]} 10... Nd4 {[%clk 0:01:06.4]} 11.
Nxd4 {[%clk 0:02:42.7]} 11... Bxd4 {[%clk 0:01:07.3]} 12. f3 {[%clk 0:02:38.7]}
12... Re8 {[%clk 0:01:00.9]} 13. Qd3 {[%clk 0:02:31.1]} 13... Bxc3+ {[%clk
0:00:52.1]} 14. Qxc3 {[%clk 0:02:30.9]} 14... Nxe4 {[%clk 0:00:51.7]} 15. Bxd8
{[%clk 0:02:17.8]} 15... Nxc3+ {[%clk 0:00:49.8]} 16. Kd2 {[%clk 0:02:17.9]}
16... Ne4+ {[%clk 0:00:44.9]} 17. fxe4 {[%clk 0:02:16.5]} 17... Rxd8 {[%clk
0:00:45.5]} 18. Bc4 {[%clk 0:02:16.9]} 18... d5 {[%clk 0:00:34.1]} 19. exd5
{[%clk 0:02:15]} 19... Be6 {[%clk 0:00:34.5]} 20. Rhe1 {[%clk 0:02:12.7]} 20...
Bxd5 {[%clk 0:00:33.5]} 21. Bxd5 {[%clk 0:02:13.6]} 21... Rxd5+ {[%clk
0:00:33.7]} 22. Kc3 {[%clk 0:02:14.5]} 22... Rad8 {[%clk 0:00:24.8]} 23. Re7
{[%clk 0:02:15.1]} 23... Rc5+ {[%clk 0:00:24.2]} 24. Kb3 {[%clk 0:02:14.7]}
24... Rd2 {[%clk 0:00:18.2]} 25. c3 {[%clk 0:02:11.6]} 25... Rxg2 {[%clk
0:00:16.2]} 26. Rf1 {[%clk 0:02:10.4]} 26... f6 {[%clk 0:00:15.6]} 27. Rd1
{[%clk 0:02:11.1]} 27... Rxh2 {[%clk 0:00:13.8]} 28. Rg1 {[%clk 0:02:07.7]}
28... Rg5 {[%clk 0:00:12.8]} 29. Rd1 {[%clk 0:02:08.3]} 29... Rgg2 {[%clk
0:00:12.4]} 30. Rdd7 {[%clk 0:02:06.2]} 30... Rxb2+ {[%clk 0:00:11.2]} 31. Kc4
{[%clk 0:02:07.1]} 31... Rhg2 {[%clk 0:00:10.9]} 32. Rxc7 {[%clk 0:02:06.6]}
32... h5 {[%clk 0:00:11.3]} 33. Re8+ {[%clk 0:01:57.4]} 33... Kh7 {[%clk
0:00:11]} 34. Rc5 {[%clk 0:01:58.3]} 34... Kg6 {[%clk 0:00:10.1]} 35. Rh8 {[%clk
0:01:55.4]} 35... Rg5 {[%clk 0:00:10]} 36. Rc7 {[%clk 0:01:54]} 36... Rg4+
{[%clk 0:00:10]} 37. Kd3 {[%clk 0:01:54.2]} 37... h4 {[%clk 0:00:10.3]} 38. Rg8
{[%clk 0:01:51.5]} 38... Kh7 {[%clk 0:00:10.6]} 39. Rcc8 {[%clk 0:01:51]} 39...
Rg3+ {[%clk 0:00:11.1]} 40. Kc4 {[%clk 0:01:50.4]} 40... h3 {[%clk 0:00:12]} 41.
Rh8+ {[%clk 0:01:50.2]} 41... Kg6 {[%clk 0:00:12.6]} 42. Rh4 {[%clk 0:01:51]}
42... Kg5 {[%clk 0:00:11.7]} 43. Rch8 {[%clk 0:01:51]} 43... Rg4+ {[%clk
0:00:10.7]} 44. Rxg4+ {[%clk 0:01:50.6]} 44... Kxg4 {[%clk 0:00:11.6]} 45. Rh7
{[%clk 0:01:51.2]} 45... g5 {[%clk 0:00:11.5]} 46. Kd5 {[%clk 0:01:51.6]} 46...
h2 {[%clk 0:00:11.7]} 47. Ke6 {[%clk 0:01:51.9]} 47... f5 {[%clk 0:00:10.7]} 48.
c4 {[%clk 0:01:50.8]} 48... f4 {[%clk 0:00:10.9]} 49. c5 {[%clk 0:01:51.2]}
49... Kg3 {[%clk 0:00:10.6]} 50. c6 {[%clk 0:01:52.1]} 50... bxc6 {[%clk
0:00:10.1]} 0-1

[Event "Late-Titled-Tuesday-Blitz-October-03-2023"]
[Site "Chess.com"]
[Date "2023.10.03"]
[Round "1"]
[White "josmito10"]
[Black "semchik73"]
[Result "0-1"]
[WhiteElo "2725"]
[BlackElo "2426"]
[TimeControl "180+1"]
[EndTime "14:05:59 PDT"]
[Termination "semchik73 won by resignation"]

1. e4 {[%clk 0:03:00.9]} 1... Nf6 {[%clk 0:03:00.2]} 2. Nc3 {[%clk 0:02:59.1]}
2... d5 {[%clk 0:03:00]} 3. d4 {[%clk 0:02:59.2]} 3... dxe4 {[%clk 0:02:59.5]}
4. f3 {[%clk 0:02:59.5]} 4... c5 {[%clk 0:02:49.7]} 5. d5 {[%clk 0:02:58.4]}
5... exf3 {[%clk 0:02:43.8]} 6. Nxf3 {[%clk 0:02:58.2]} 6... g6 {[%clk
0:02:42.7]} 7. Bd3 {[%clk 0:02:57.9]} 7... Bg7 {[%clk 0:02:42.7]} 8. Bg5 {[%clk
0:02:56.7]} 8... O-O {[%clk 0:02:40.9]} 9. h4 {[%clk 0:02:56.7]} 9... Nxd5
{[%clk 0:02:39.4]} 10. h5 {[%clk 0:02:54.7]} 10... Nxc3 {[%clk 0:02:37.8]} 11.
bxc3 {[%clk 0:02:55.6]} 11... Bg4 {[%clk 0:02:34.2]} 12. hxg6 {[%clk 0:02:54.3]}
12... fxg6 {[%clk 0:02:34.2]} 13. Qe2 {[%clk 0:02:51.6]} 13... Bxc3+ {[%clk
0:02:28.3]} 14. Kf2 {[%clk 0:02:41.6]} 14... Bxa1 {[%clk 0:02:18.7]} 15. Kg3
{[%clk 0:02:07.5]} 15... Bxf3 {[%clk 0:02:09.7]} 16. gxf3 {[%clk 0:01:46]} 16...
Qd6+ {[%clk 0:02:09.5]} 17. f4 {[%clk 0:01:45]} 17... Bf6 {[%clk 0:02:05.3]} 18.
Bh6 {[%clk 0:01:30.3]} 18... Bg7 {[%clk 0:01:43.5]} 19. Bg5 {[%clk 0:01:09.9]}
19... Nc6 {[%clk 0:01:39.1]} 20. Rxh7 {[%clk 0:01:09.3]} 20... Kxh7 {[%clk
0:01:00.6]} 21. Qh5+ {[%clk 0:01:08.3]} 21... Kg8 {[%clk 0:01:00.8]} 22. Bxg6
{[%clk 0:01:08.1]} 22... Rf6 {[%clk 0:01:00.1]} 23. Qh7+ {[%clk 0:00:59.1]}
23... Kf8 {[%clk 0:00:59.9]} 24. Bd3 {[%clk 0:00:51]} 24... Nd4 {[%clk 0:00:46]}
25. Bc4 {[%clk 0:00:42.1]} 25... Nf5+ {[%clk 0:00:43.5]} 26. Kh3 {[%clk
0:00:37.3]} 26... Rh6+ {[%clk 0:00:39.5]} 27. Bxh6 {[%clk 0:00:36]} 27... Qxh6+
{[%clk 0:00:39.6]} 0-1

[Event "Late-Titled-Tuesday-Blitz-October-03-2023"]
[Site "Chess.com"]
[Date "2023.10.03"]
[Round "1"]
[White "GMG"]
[Black "RCone"]
[Result "1-0"]
[WhiteElo "2759"]
[BlackElo "2419"]
[TimeControl "180+1"]
[EndTime "14:06:07 PDT"]
[Termination "GMG won on time"]

1. d4 {[%clk 0:02:58.2]} 1... d6 {[%clk 0:02:58.7]} 2. Nf3 {[%clk 0:02:57.5]}
2... Nf6 {[%clk 0:02:56.9]} 3. g3 {[%clk 0:02:57.8]} 3... g6 {[%clk 0:02:53.5]}
4. Bg2 {[%clk 0:02:57]} 4... Bg7 {[%clk 0:02:53.3]} 5. c4 {[%clk 0:02:57.6]}
5... O-O {[%clk 0:02:53.5]} 6. Nc3 {[%clk 0:02:58.2]} 6... Nc6 {[%clk
0:02:53.6]} 7. O-O {[%clk 0:02:58.1]} 7... a6 {[%clk 0:02:53.8]} 8. Bf4 {[%clk
0:02:57.7]} 8... Rb8 {[%clk 0:02:51.1]} 9. Rc1 {[%clk 0:02:56.2]} 9... Bd7
{[%clk 0:02:49.5]} 10. Qd2 {[%clk 0:02:54.7]} 10... b5 {[%clk 0:02:41.7]} 11.
Nd5 {[%clk 0:02:54.5]} 11... Ne4 {[%clk 0:02:39.6]} 12. Qe3 {[%clk 0:02:50]}
12... f5 {[%clk 0:02:16.8]} 13. cxb5 {[%clk 0:02:47.1]} 13... axb5 {[%clk
0:02:15.6]} 14. Rfd1 {[%clk 0:02:46.9]} 14... e6 {[%clk 0:02:14.4]} 15. Nc3
{[%clk 0:02:44.2]} 15... Nxc3 {[%clk 0:01:42.7]} 16. Rxc3 {[%clk 0:02:45.1]}
16... b4 {[%clk 0:01:40.7]} 17. Rc2 {[%clk 0:02:39]} 17... b3 {[%clk 0:01:34.5]}
18. axb3 {[%clk 0:02:37.2]} 18... Nb4 {[%clk 0:01:35]} 19. Rcc1 {[%clk 0:02:33]}
19... Nd5 {[%clk 0:01:34.7]} 20. Qd3 {[%clk 0:02:32.1]} 20... Nxf4 {[%clk
0:01:33.9]} 21. gxf4 {[%clk 0:02:32]} 21... Bb5 {[%clk 0:01:30.2]} 22. Qc2
{[%clk 0:02:30.3]} 22... c6 {[%clk 0:01:29.1]} 23. Ng5 {[%clk 0:02:24.8]} 23...
Qe7 {[%clk 0:01:22.5]} 24. Bxc6 {[%clk 0:02:18.6]} 24... Bxc6 {[%clk 0:00:49.7]}
25. Qxc6 {[%clk 0:02:19.5]} 25... Rxb3 {[%clk 0:00:49.6]} 26. Qc4 {[%clk
0:02:15.7]} 26... Rxb2 {[%clk 0:00:44.8]} 27. Nxe6 {[%clk 0:02:14.9]} 27... Rf6
{[%clk 0:00:29.4]} 28. Ng5+ {[%clk 0:02:01]} 28... Kh8 {[%clk 0:00:26.1]} 29.
Rc2 {[%clk 0:01:53.8]} 29... Rxc2 {[%clk 0:00:23.1]} 30. Qxc2 {[%clk 0:01:54.7]}
30... h6 {[%clk 0:00:23.5]} 31. Nf3 {[%clk 0:01:54.5]} 31... Re6 {[%clk
0:00:19.8]} 32. e3 {[%clk 0:01:54.2]} 32... Qb7 {[%clk 0:00:14.7]} 33. Kg2
{[%clk 0:01:39.8]} 33... g5 {[%clk 0:00:14.3]} 34. fxg5 {[%clk 0:01:38.1]} 34...
hxg5 {[%clk 0:00:15.2]} 35. Qxf5 {[%clk 0:01:37.9]} 35... Rf6 {[%clk 0:00:09.9]}
36. Qg4 {[%clk 0:01:37.8]} 36... Qd5 {[%clk 0:00:02.2]} 37. Rc1 {[%clk
0:01:34.1]} 37... Bh6 {[%clk 0:00:01.4]} 38. Rc8+ {[%clk 0:01:32.2]} 38... Kg7
{[%clk 0:00:01.6]} 39. Rc7+ {[%clk 0:01:32.3]} 1-0

[Event "Late-Titled-Tuesday-Blitz-October-03-2023"]
[Site "Chess.com"]
[Date "2023.10.03"]
[Round "1"]
[White "Korchmar_Vasiliy"]
[Black "Gogolev_Artemy"]
[Result "1-0"]
[WhiteElo "2713"]
[BlackElo "2395"]
[TimeControl "180+1"]
[EndTime "14:06:08 PDT"]
[Termination "Korchmar_Vasiliy won by resignation"]

1. e4 {[%clk 0:02:59.9]} 1... c5 {[%clk 0:02:59.9]} 2. d4 {[%clk 0:02:58.9]}
2... cxd4 {[%clk 0:02:59.7]} 3. Qxd4 {[%clk 0:02:59.8]} 3... Nc6 {[%clk
0:02:59.3]} 4. Qd3 {[%clk 0:02:56.6]} 4... g6 {[%clk 0:02:58.4]} 5. Nc3 {[%clk
0:02:52.2]} 5... Bg7 {[%clk 0:02:58.7]} 6. Nf3 {[%clk 0:02:51.2]} 6... Nf6
{[%clk 0:02:54.7]} 7. Be2 {[%clk 0:02:50.6]} 7... O-O {[%clk 0:02:54.1]} 8. O-O
{[%clk 0:02:50.8]} 8... d6 {[%clk 0:02:54.5]} 9. Nd5 {[%clk 0:02:51.3]} 9... Nd7
{[%clk 0:02:41.2]} 10. c3 {[%clk 0:02:47.8]} 10... Nc5 {[%clk 0:02:37.2]} 11.
Qc2 {[%clk 0:02:48]} 11... b6 {[%clk 0:02:24.7]} 12. Bg5 {[%clk 0:02:43.7]}
12... Bb7 {[%clk 0:02:12]} 13. b4 {[%clk 0:02:43.8]} 13... Ne6 {[%clk
0:02:11.9]} 14. Bh4 {[%clk 0:02:40.8]} 14... Re8 {[%clk 0:02:10.9]} 15. Rad1
{[%clk 0:02:40.1]} 15... Rc8 {[%clk 0:02:09.6]} 16. a3 {[%clk 0:02:33.9]} 16...
Qd7 {[%clk 0:01:54.5]} 17. Qb1 {[%clk 0:02:22.7]} 17... Nc7 {[%clk 0:01:23.1]}
18. h3 {[%clk 0:02:22.2]} 18... Ne5 {[%clk 0:01:20.3]} 19. Nxe5 {[%clk
0:02:13.9]} 19... Bxe5 {[%clk 0:01:21.2]} 20. c4 {[%clk 0:02:04.3]} 20... Bg7
{[%clk 0:01:13.3]} 21. Bg4 {[%clk 0:02:02.2]} 21... Ne6 {[%clk 0:01:00.5]} 22.
f4 {[%clk 0:01:35.3]} 22... h5 {[%clk 0:00:30.8]} 23. Be2 {[%clk 0:01:35.4]}
23... Bxd5 {[%clk 0:00:20.4]} 24. exd5 {[%clk 0:01:33.7]} 24... Nd4 {[%clk
0:00:21.1]} 25. Bd3 {[%clk 0:01:34.1]} 25... b5 {[%clk 0:00:21.4]} 26. cxb5
{[%clk 0:01:29.5]} 26... Nxb5 {[%clk 0:00:22.3]} 27. Bxb5 {[%clk 0:01:08.7]}
27... Qxb5 {[%clk 0:00:23.2]} 28. f5 {[%clk 0:01:09.6]} 28... Qc4 {[%clk
0:00:19.4]} 29. fxg6 {[%clk 0:01:06.2]} 29... fxg6 {[%clk 0:00:17.6]} 30. Qxg6
{[%clk 0:01:00.8]} 30... Qxh4 {[%clk 0:00:16.1]} 31. Rf7 {[%clk 0:01:01]} 31...
Qd4+ {[%clk 0:00:16.1]} 32. Rxd4 {[%clk 0:01:01]} 1-0

[Event "Late-Titled-Tuesday-Blitz-October-03-2023"]
[Site "Chess.com"]
[Date "2023.10.03"]
[Round "1"]
[White "Rozhkov_V"]
[Black "alexrustemov"]
[Result "0-1"]
[WhiteElo "2443"]
[BlackElo "2840"]
[TimeControl "180+1"]
[EndTime "14:06:11 PDT"]
[Termination "alexrustemov won on time"]

1. c4 {[%clk 0:02:57.2]} 1... c5 {[%clk 0:02:59.4]} 2. g3 {[%clk 0:02:57.2]}
2... g6 {[%clk 0:02:59.8]} 3. Bg2 {[%clk 0:02:57.5]} 3... Bg7 {[%clk 0:03:00.3]}
4. Nc3 {[%clk 0:02:58.1]} 4... Nc6 {[%clk 0:03:00.7]} 5. e3 {[%clk 0:02:58.8]}
5... Bxc3 {[%clk 0:02:59.6]} 6. dxc3 {[%clk 0:02:56.9]} 6... d6 {[%clk
0:02:59.9]} 7. Ne2 {[%clk 0:02:54.5]} 7... Qc7 {[%clk 0:02:59.3]} 8. h4 {[%clk
0:02:53.8]} 8... Nf6 {[%clk 0:02:56.4]} 9. Nf4 {[%clk 0:02:52.7]} 9... e6 {[%clk
0:02:54.5]} 10. h5 {[%clk 0:02:51.3]} 10... g5 {[%clk 0:02:54.4]} 11. Nd3 {[%clk
0:02:44.5]} 11... g4 {[%clk 0:02:51]} 12. h6 {[%clk 0:02:38.9]} 12... b6 {[%clk
0:02:48]} 13. e4 {[%clk 0:02:33.8]} 13... Rg8 {[%clk 0:02:45.1]} 14. Bf4 {[%clk
0:02:25.7]} 14... Bb7 {[%clk 0:02:37.3]} 15. Qa4 {[%clk 0:02:12]} 15... Nd7
{[%clk 0:02:29.2]} 16. O-O-O {[%clk 0:01:56.3]} 16... O-O-O {[%clk 0:02:27.3]}
17. Rh5 {[%clk 0:01:10.1]} 17... Na5 {[%clk 0:02:21.5]} 18. Rg5 {[%clk
0:00:51.5]} 18... Bc6 {[%clk 0:02:17.9]} 19. Qc2 {[%clk 0:00:41.5]} 19... Nxc4
{[%clk 0:02:17.9]} 20. Qe2 {[%clk 0:00:27.8]} 20... Rxg5 {[%clk 0:02:12.7]} 21.
Bxg5 {[%clk 0:00:28.7]} 21... Rg8 {[%clk 0:02:12.8]} 22. Qxg4 {[%clk 0:00:18.2]}
22... f5 {[%clk 0:01:58]} 23. Qh4 {[%clk 0:00:06.8]} 23... fxe4 {[%clk
0:01:48.3]} 24. Nf4 {[%clk 0:00:07.1]} 24... Nde5 {[%clk 0:01:37.1]} 25. Nxe6
{[%clk 0:00:06.5]} 25... Qf7 {[%clk 0:01:37.5]} 26. Bh3 {[%clk 0:00:04.5]} 26...
Bd7 {[%clk 0:01:36.3]} 27. Nf4 {[%clk 0:00:02.5]} 27... Bxh3 {[%clk 0:01:29.5]}
28. Qxh3+ {[%clk 0:00:02.6]} 28... Kb7 {[%clk 0:01:30.1]} 29. Bh4 {[%clk
0:00:02.9]} 29... Nd3+ {[%clk 0:01:19.7]} 30. Nxd3 {[%clk 0:00:02.3]} 30... exd3
{[%clk 0:01:20.6]} 31. Qh1+ {[%clk 0:00:02.8]} 31... Kc7 {[%clk 0:01:18.7]} 32.
b3 {[%clk 0:00:02.3]} 32... Qxf2 {[%clk 0:01:13.5]} 0-1

[Event "Late-Titled-Tuesday-Blitz-October-03-2023"]
[Site "Chess.com"]
[Date "2023.10.03"]
[Round "1"]
[White "AsaHoffmann"]
[Black "tdf98pantani"]
[Result "0-1"]
[WhiteElo "2376"]
[BlackElo "2698"]
[TimeControl "180+1"]
[EndTime "14:06:11 PDT"]
[Termination "tdf98pantani won by resignation"]

1. d4 {[%clk 0:02:58.4]} 1... Nf6 {[%clk 0:02:59.4]} 2. Bg5 {[%clk 0:02:54.6]}
2... d5 {[%clk 0:02:53.1]} 3. Nd2 {[%clk 0:02:54.1]} 3... e6 {[%clk 0:02:51.7]}
4. e3 {[%clk 0:02:53.7]} 4... Be7 {[%clk 0:02:51.4]} 5. Bd3 {[%clk 0:02:53.4]}
5... b6 {[%clk 0:02:51]} 6. f4 {[%clk 0:02:52.5]} 6... Bb7 {[%clk 0:02:51]} 7.
Ngf3 {[%clk 0:02:52.3]} 7... Ne4 {[%clk 0:02:41.7]} 8. Bxe7 {[%clk 0:02:48.7]}
8... Qxe7 {[%clk 0:02:41.4]} 9. Bxe4 {[%clk 0:02:47.7]} 9... dxe4 {[%clk
0:02:41]} 10. Ne5 {[%clk 0:02:47.6]} 10... O-O {[%clk 0:02:40]} 11. O-O {[%clk
0:02:43.7]} 11... f6 {[%clk 0:02:36.3]} 12. Ng4 {[%clk 0:02:40.8]} 12... c5
{[%clk 0:02:34.3]} 13. c3 {[%clk 0:02:40.2]} 13... Nd7 {[%clk 0:02:30.8]} 14.
Qe2 {[%clk 0:02:37]} 14... Rac8 {[%clk 0:02:23.7]} 15. a4 {[%clk 0:02:36.3]}
15... a6 {[%clk 0:02:18.1]} 16. Rac1 {[%clk 0:02:25]} 16... a5 {[%clk
0:02:02.1]} 17. b3 {[%clk 0:02:06.2]} 17... Rc7 {[%clk 0:01:57.7]} 18. Nc4
{[%clk 0:02:04.6]} 18... Ba6 {[%clk 0:01:55]} 19. Qe1 {[%clk 0:01:59.3]} 19...
Rfc8 {[%clk 0:01:52.4]} 20. f5 {[%clk 0:01:49.4]} 20... exf5 {[%clk 0:01:44.4]}
21. Rxf5 {[%clk 0:01:44.6]} 21... cxd4 {[%clk 0:01:37]} 22. exd4 {[%clk
0:01:40.4]} 22... Bxc4 {[%clk 0:01:36.9]} 23. bxc4 {[%clk 0:01:40]} 23... Rxc4
{[%clk 0:01:37.8]} 24. Ne3 {[%clk 0:01:37.1]} 24... R4c6 {[%clk 0:01:36]} 25.
Qg3 {[%clk 0:01:30.5]} 25... Rxc3 {[%clk 0:01:29.9]} 26. Rcf1 {[%clk 0:01:23.4]}
26... Rd3 {[%clk 0:01:15.8]} 27. Qg4 {[%clk 0:01:16.9]} 27... Rxe3 {[%clk
0:01:11.7]} 28. h4 {[%clk 0:01:12.8]} 28... Re8 {[%clk 0:01:09.2]} 29. h5 {[%clk
0:01:09.7]} 29... h6 {[%clk 0:01:06.6]} 30. Rb5 {[%clk 0:01:04.1]} 30... Qd6
{[%clk 0:01:05]} 31. Qg6 {[%clk 0:00:58.4]} 31... Re7 {[%clk 0:01:01.1]} 32.
Rff5 {[%clk 0:00:56.7]} 32... Rd3 {[%clk 0:00:55]} 33. Rbd5 {[%clk 0:00:55.6]}
33... Qg3 {[%clk 0:00:48.1]} 34. Qxg3 {[%clk 0:00:53.5]} 34... Rxg3 {[%clk
0:00:47.7]} 35. Kf2 {[%clk 0:00:52.3]} 35... Rd3 {[%clk 0:00:46]} 36. Rd6 {[%clk
0:00:48.6]} 36... e3+ {[%clk 0:00:45.5]} 37. Ke2 {[%clk 0:00:48.3]} 37... Rd2+
{[%clk 0:00:45.8]} 38. Ke1 {[%clk 0:00:48.6]} 38... e2 {[%clk 0:00:44.4]} 39.
Rxd7 {[%clk 0:00:43.8]} 39... Rd1+ {[%clk 0:00:44.1]} 0-1

[Event "Late-Titled-Tuesday-Blitz-October-03-2023"]
[Site "Chess.com"]
[Date "2023.10.03"]
[Round "1"]
[White "Mops_2004"]
[Black "Casper"]
[Result "1-0"]
[WhiteElo "2825"]
[BlackElo "2437"]
[TimeControl "180+1"]
[EndTime "14:06:16 PDT"]
[Termination "Mops_2004 won on time"]

1. g3 {[%clk 0:03:00.9]} 1... Nc6 {[%clk 0:02:58]} 2. Bg2 {[%clk 0:02:59.4]}
2... d6 {[%clk 0:02:57.4]} 3. c4 {[%clk 0:02:57.6]} 3... g6 {[%clk 0:02:56.3]}
4. Nc3 {[%clk 0:02:56.9]} 4... Bg7 {[%clk 0:02:56.8]} 5. e3 {[%clk 0:02:56.6]}
5... e5 {[%clk 0:02:55.6]} 6. Nge2 {[%clk 0:02:56.7]} 6... f5 {[%clk 0:02:53.6]}
7. d4 {[%clk 0:02:52.6]} 7... Nf6 {[%clk 0:02:53.6]} 8. Bxc6+ {[%clk 0:02:48.2]}
8... bxc6 {[%clk 0:02:53.7]} 9. dxe5 {[%clk 0:02:49.1]} 9... dxe5 {[%clk
0:02:54.6]} 10. Qxd8+ {[%clk 0:02:48.6]} 10... Kxd8 {[%clk 0:02:55.5]} 11. b3
{[%clk 0:02:48.6]} 11... Ke7 {[%clk 0:02:49.8]} 12. Na4 {[%clk 0:02:44.5]} 12...
Rd8 {[%clk 0:02:20.4]} 13. Bb2 {[%clk 0:02:43.1]} 13... Ne4 {[%clk 0:02:14.4]}
14. f3 {[%clk 0:02:42.1]} 14... Ng5 {[%clk 0:01:50.9]} 15. f4 {[%clk 0:02:29.7]}
15... Ne4 {[%clk 0:00:50.9]} 16. Bxe5 {[%clk 0:02:29.1]} 16... Bxe5 {[%clk
0:00:47.5]} 17. fxe5 {[%clk 0:02:30]} 17... Rd3 {[%clk 0:00:35.6]} 18. Rc1
{[%clk 0:01:46.3]} 18... Be6 {[%clk 0:00:19.6]} 19. O-O {[%clk 0:01:29.2]} 19...
Rxe3 {[%clk 0:00:12.7]} 20. Nd4 {[%clk 0:01:24.8]} 20... c5 {[%clk 0:00:11]} 21.
Nc6+ {[%clk 0:01:11.5]} 21... Kd7 {[%clk 0:00:06.7]} 22. Na5 {[%clk 0:01:11.7]}
22... Re2 {[%clk 0:00:06.2]} 23. Rcd1+ {[%clk 0:01:04.2]} 23... Ke8 {[%clk
0:00:05.2]} 24. Nb7 {[%clk 0:01:01.6]} 24... Rxa2 {[%clk 0:00:01.5]} 25. Naxc5
{[%clk 0:01:01.6]} 25... Nxc5 {[%clk 0:00:02.1]} 26. Nxc5 {[%clk 0:01:02.5]}
26... Bg8 {[%clk 0:00:01.6]} 27. Rd7 {[%clk 0:01:01]} 27... Re2 {[%clk
0:00:01.2]} 28. Rg7 {[%clk 0:00:53]} 1-0

[Event "Late-Titled-Tuesday-Blitz-October-03-2023"]
[Site "Chess.com"]
[Date "2023.10.03"]
[Round "1"]
[White "whiteglovethief"]
[Black "Hrant_ChessMood"]
[Result "0-1"]
[WhiteElo "2492"]
[BlackElo "2961"]
[TimeControl "180+1"]
[EndTime "14:06:22 PDT"]
[Termination "Hrant_ChessMood won by resignation"]

1. d4 {[%clk 0:03:00]} 1... Nf6 {[%clk 0:02:57.8]} 2. c4 {[%clk 0:02:59.6]} 2...
g6 {[%clk 0:02:55.7]} 3. Nc3 {[%clk 0:02:59.7]} 3... Bg7 {[%clk 0:02:55.8]} 4.
e4 {[%clk 0:03:00]} 4... d6 {[%clk 0:02:56.3]} 5. Nf3 {[%clk 0:03:00.4]} 5...
O-O {[%clk 0:02:55.6]} 6. Be2 {[%clk 0:03:01.1]} 6... c5 {[%clk 0:02:55.6]} 7.
O-O {[%clk 0:02:53.3]} 7... Re8 {[%clk 0:02:55.3]} 8. dxc5 {[%clk 0:02:50.6]}
8... dxc5 {[%clk 0:02:54.4]} 9. Be3 {[%clk 0:02:49.1]} 9... b6 {[%clk
0:02:50.7]} 10. h3 {[%clk 0:02:45.8]} 10... Bb7 {[%clk 0:02:48.2]} 11. e5 {[%clk
0:02:42.2]} 11... Nfd7 {[%clk 0:02:30.8]} 12. e6 {[%clk 0:02:40.2]} 12... fxe6
{[%clk 0:02:30.3]} 13. Ng5 {[%clk 0:02:38]} 13... Nf8 {[%clk 0:02:30.2]} 14. Bg4
{[%clk 0:02:28.2]} 14... Qxd1 {[%clk 0:02:16.6]} 15. Raxd1 {[%clk 0:02:29.1]}
15... h5 {[%clk 0:01:38.4]} 16. Bxe6+ {[%clk 0:02:20.5]} 16... Nxe6 {[%clk
0:01:37.8]} 17. Nxe6 {[%clk 0:02:21.4]} 17... Bxc3 {[%clk 0:01:26.3]} 18. bxc3
{[%clk 0:02:20.5]} 18... Na6 {[%clk 0:01:27]} 19. Bf4 {[%clk 0:02:09]} 19... Bc8
{[%clk 0:01:25.4]} 20. Nc7 {[%clk 0:02:06.9]} 20... Nxc7 {[%clk 0:01:24.6]} 21.
Bxc7 {[%clk 0:02:07.8]} 21... Be6 {[%clk 0:01:25]} 22. Rfe1 {[%clk 0:02:05.1]}
22... Bxc4 {[%clk 0:01:24.9]} 23. a3 {[%clk 0:02:03.3]} 23... Rac8 {[%clk
0:01:24.5]} 24. Rd7 {[%clk 0:01:57.3]} 24... Bb5 {[%clk 0:01:01.1]} 25. Rdxe7
{[%clk 0:01:53.9]} 25... Rxc7 {[%clk 0:01:00.6]} 26. Rxe8+ {[%clk 0:01:52]}
26... Bxe8 {[%clk 0:01:01.5]} 27. Rxe8+ {[%clk 0:01:51.7]} 27... Kf7 {[%clk
0:01:01.5]} 28. Ra8 {[%clk 0:01:51.5]} 28... Ke6 {[%clk 0:01:00.3]} 29. g4
{[%clk 0:01:46.5]} 29... hxg4 {[%clk 0:00:59.1]} 30. hxg4 {[%clk 0:01:46.5]}
30... Kd5 {[%clk 0:01:00]} 31. Kg2 {[%clk 0:01:42.8]} 31... Kc4 {[%clk
0:00:59.8]} 32. f4 {[%clk 0:01:37.1]} 32... Kxc3 {[%clk 0:00:59.9]} 33. Rg8
{[%clk 0:01:35.1]} 33... c4 {[%clk 0:01:00.4]} 34. Rxg6 {[%clk 0:01:34.6]} 34...
Kb2 {[%clk 0:00:59.7]} 35. Rh6 {[%clk 0:01:22.5]} 35... c3 {[%clk 0:00:59.8]}
36. f5 {[%clk 0:01:22]} 36... c2 {[%clk 0:00:59.6]} 37. Rh1 {[%clk 0:01:22.5]}
37... b5 {[%clk 0:00:57.3]} 38. f6 {[%clk 0:01:20.1]} 38... Rc6 {[%clk
0:00:48.1]} 39. g5 {[%clk 0:01:19.6]} 39... Rc5 {[%clk 0:00:48.1]} 40. Kf3
{[%clk 0:01:09]} 40... Rxg5 {[%clk 0:00:46.2]} 41. Kf4 {[%clk 0:01:09.5]} 41...
Rg2 {[%clk 0:00:45.7]} 42. Ke3 {[%clk 0:00:54.6]} 42... Rg6 {[%clk 0:00:43.3]}
0-1